Cogmind - Beta 17.1 @@@ ROGUE MODE // 2026.09.20 @ 16:10:32 Player: Caluan Result: Destroyed by G-34 Mercenary with Small Laser Performance ------------- Evolutions (1) 500 Regions Visited (2) 400 Robots Destroyed (55) 275 Value Destroyed (1157) 1157 Prototype IDs (1) 20 Alien Tech Used (0) 0 Bonus (19) 19 TOTAL SCORE: 2371 Bonus ------- High Alert Combat Kills 19 Cogmind --------- Core Integrity 0/400 Matter 290/300 Energy 100/100 System Corruption 3% Temperature Cool (6) Movement Walking (400) Ox4 Location -9/Materials Parts ------- > --- POWER (1) -------- (None) > --- PROPULSION (2) --- Aluminum Leg > --- UTILITY (3) ------ High-capacity Storage Unit > --- WEAPON (3) ------- Heavy Mace > --- INVENTORY (20) --- Heavy Ion Engine Light Treads Huge Storage Unit High-capacity Matter Pod (200) Seismic Detector Light Armor Plating Hacking Suite Tractor Beam Heavy Assault Rifle Improved Grenade Launcher Improved Grenade Launcher Improved Grenade Launcher Heavy Mace Peak State ------------ > --- POWER ------------ Heavy Ion Engine > --- PROPULSION ------- Light Treads Light Treads > --- UTILITY ---------- Heat Sink High-capacity Storage Unit > --- WEAPON ----------- EM Pulse Gun Medium Laser Improved Grenade Launcher > --- INVENTORY -------- Heavy Ion Engine Light Treads Light Treads Wheel Wheel High-capacity Matter Pod Seismic Detector Light Armor Plating Hacking Suite Tractor Beam Improved Grenade Launcher Improved Grenade Launcher Heavy Mace Heavy Mace [Rating: 14] Favorites ----------- Power Ion Engine Engine Ion Engine Propulsion Light Treads Treads Light Treads Leg Aluminum Leg Wheel Wheel Utility High-capacity Storage Unit Device Heat Sink Storage High-capacity Storage Unit Protection Light Armor Plating Weapon Medium Laser Energy Gun Medium Laser Ballistic Gun Light Assault Rifle Launcher Improved Grenade Launcher Impact Weapon Heavy Mace Build | -11 -10 -9 ------- Run | Yrd Mat Mat Slots Evolved 2 | . . 2 Power . | . . . Propulsion . | . . . Utility 1 | . . 1 Weapon 1 | . . 1 Parts Attached 25 | 7 7 11 Power 6 | 1 3 2 Engine 6 | 1 3 2 Core . | . . . Reactor . | . . . Propulsion 7 | 2 2 3 Treads 4 | 2 2 . Leg 1 | . . 1 Wheel 2 | . . 2 Hover . | . . . Flight . | . . . Utility 4 | 1 2 1 Device 1 | . 1 . Storage 2 | 1 1 . Processor . | . . . Hackware . | . . . Protection 1 | . . 1 Artifact . | . . . Weapon 8 | 3 . 5 Energy Gun 3 | 3 . . Energy Cannon . | . . . Ballistic Gun 2 | . . 2 Ballistic Cannon . | . . . Launcher 1 | . . 1 Special Weapon . | . . . Impact Weapon 2 | . . 2 Slashing Weapon . | . . . Piercing Weapon . | . . . Special Melee Weapon . | . . . Unidentified Prototypes 1 | . . 1 Corrupted Parts 1 | . 1 . System Corruption 6 | . 6 . Parts Lost 11 | . 2 9 Power 2 | . 1 1 Propulsion 2 | . . 2 Utility 2 | . . 2 Weapon 5 | . 1 4 Highest Loss Streak 5 | . 2 5 To Critical Strikes . | . . . Average Backups 9 | 2 7 11 Power . | . . . Propulsion 2 | . 3 1 Utility 3 | . 2 5 Weapon 2 | . . 3 Tool/Special . | . . . Unused Backups 13 | . . 13 Power 1 | . . 1 Propulsion 1 | . . 1 Utility 5 | . . 5 Weapon 6 | . . 6 Tool/Special . | . . . Average Slot Usage (%) 72 | . 90 54 Engine 9 | . 13 5 Treads 18 | . 28 9 Leg 1 | . . 3 Wheel 1 | . . 2 Device 5 | . 6 4 Storage 12 | . 14 11 Energy Gun 18 | . 28 8 Impact Weapon 3 | . . 6 Peak Build Rating 14 | 6 8 14 Average Rating 7 | 4 6 8 On Entrance 4 | . 6 8 Avg Prop Armor Cover (%) . | . . . Naked Turns . | . . . Heaviest Build 57 | 14 54 57 Greatest Support 40 | 40 40 40 Greatest Overweight (x) 14 | . 1 14 Average Overweight (x) 1 | . . 2 Largest Inventory Capacity 20 | 8 20 20 Average Capacity 16 | 6 13 20 Most Carried 17 | 4 9 17 Average Carried 9 | 2 7 11 Final Capacity 20 | 8 20 20 Final Carried 13 | 4 9 13 Class Distribution -------------------- 98% | Mutant Dominant Class ---------------- Mutant | -10/Materials Mutant | -9/Materials Resources | -11 -10 -9 ----------- Run | Yrd Mat Mat Matter Collected 871 | 210 361 300 Remotely . | . . . Salvage Created 1607 | . 682 925 Parts 82 | . 30 52 Haulers Intercepted 3 | . 2 1 Recyclers Shooed 5 | . 2 3 Parts Field Recycled . | . . . Retrieved Matter . | . . . Parts Self-Destructed . | . . . Prevented . | . . . Parts Restored . | . . . Kills | -11 -10 -9 ------- Run | Yrd Mat Mat Combat Hostiles Destroyed 36 | . 12 24 Melee 6 | . 1 5 Guns 13 | . 10 3 AOE 13 | . . 13 Classes Destroyed 10 | . 6 4 Worker 6 | . 2 4 Builder 2 | . . 2 Hauler 3 | . 2 1 Recycler 4 | . 2 2 Operator 2 | . 1 1 Watcher 2 | . . 2 Swarmer 11 | . 3 8 Grunt 22 | . 9 13 Duelist 1 | . . 1 Sentry 2 | . . 2 Best Kill Streak 9 | . 3 9 Combat Bots Only 6 | . 3 6 Max Kills in Single Turn 6 | . 2 6 Gunslinging . | . . . Exploded 3 | . . 3 Melee 1 | . 1 1 Uniques/NPCs Destroyed . | . . . Combat | -11 -10 -9 -------- Run | Yrd Mat Mat Hostile Shots Fired 207 | . 89 118 Missed 54 | . 21 33 Hits 153 | . 68 85 Melee 7 | . . 7 Projectile 146 | . 68 78 Critical Strikes 5 | . . 5 Damage Taken 1923 | . 668 1255 Core 516 | . 108 408 Absorbed by Shields . | . . . Core Remaining (%) 78 | 100 56 . Volleys Fired 88 | . 61 27 Largest 3 | . 2 3 Hottest 110 | . 100 110 Shots Fired 166 | . 123 43 Gun 158 | . 123 35 Cannon . | . . . Launcher 8 | . . 8 Special . | . . . Kinetic 10 | . . 10 Thermal 124 | . 111 13 Explosive 8 | . . 8 Electromagnetic 24 | . 12 12 Robot Hit Streak 18 | . 17 18 Robot Miss Streak 5 | . 5 5 Penetration Max . | . . . Secondary Targets 2 | . 2 . Max Gunslinging Chain 1 | . 1 . Shots Hit Robots 118 | . 69 49 Core Hits 71 | . 34 37 Critical Kills 1 | . . 1 Critical Parts Destroyed 3 | . . 3 Critical Strikes 9 | . 2 7 Burn 4 | . 2 2 Corrupt 1 | . . 1 Smash 4 | . . 4 Melee Attacks 33 | . . 33 Impact 33 | . . 33 Slashing . | . . . Piercing . | . . . Sneak Attacks 3 | . . 3 Combat Hostiles . | . . . Follow-up Attacks . | . . . Damage Inflicted 3851 | 5 1006 2840 Guns 1237 | . 976 261 Cannons . | . . . Explosions 1333 | . . 1333 Melee 1246 | . . 1246 Ramming 35 | 5 30 . Kinetic 51 | . . 51 Thermal 1071 | . 863 208 Explosive 1235 | . . 1235 Electromagnetic 213 | . 113 100 Impact 1246 | . . 1246 Slashing . | . . . Piercing . | . . . Highest Corruption 6 | . 6 3 Average Corruption 3 | . 6 3 Corruption Purged . | . . . Corruption Blocked . | . . . Effects 18 | . 4 14 Message Errors 8 | . 2 6 Matter Fused 5 | . . 5 Heat Flow Errors 1 | . . 1 Data Loss (minor) 2 | . . 2 Data Loss (major) 1 | . 1 . Misfires 1 | . 1 . Overload Shots . | . . . Overflow Damage 398 | . . 398 Projectiles . | . . . Explosions 59 | . . 59 Melee 339 | . . 339 Knockbacks 7 | . . 7 Impact 7 | . . 7 Kinetic . | . . . Secondary . | . . . Self-Inflicted Damage 46 | . . 46 Shots 1 | . . 1 Rammed 9 | 2 7 . Targets Rammed 11 | 2 9 . Kicked . | . . . Crushed 2 | . 2 . Highest Temperature 285 | . 285 205 Average Temperature 86 | . 90 70 Received Heat Transfer 609 | . 213 396 Siege Activations . | . . . Martial Activations . | . . . Shielding Activations . | . . . Robots Disrupted . | . . . Combat Hostiles . | . . . Robots Corrupted 6 | . . 6 Combat Hostiles 3 | . . 3 Parts Fried 8 | . 1 7 Impact Corruptions 16 | . . 16 Robots Melted 1 | . 1 . Combat Hostiles 1 | . 1 . Parts Melted 4 | . 4 . Heat Transferred 3232 | . 2701 531 Parts Sabotaged . | . . . Parts Stolen . | . . . Parts Stripped . | . . . Power Chain Reactions 2 | . . 2 Alert | -11 -10 -9 ------- Run | Yrd Mat Mat Maximum Alert Level 2 | . . 2 Low Security (%) 68 | 100 100 34 Level 1 28 | . . 59 Level 2 2 | . . 6 Level 3 . | . . . Level 4 . | . . . Level 5 . | . . . High Security . | . . . Max Security . | . . . Peak Influence 414 | . 89 414 Initial . | . . . Average 118 | . 23 224 Influence Increases 1029 | . 333 696 Destroy 0b10 Robot/C 720 | . 240 480 Destroy 0b10 Robot/NC 95 | . 35 60 Destroy Leader 130 | . 44 86 Successful Hack 14 | . 13 1 Destroy Structure 70 | . 1 69 Influence Decreases 725 | . 333 392 Time Decay 633 | . 331 302 Lost Part 92 | . 2 90 Squads Dispatched 4 | . 2 2 Investigation . | . . . Extermination . | . . . Reinforcement 4 | . 2 2 Assault . | . . . Garrison . | . . . Intercept . | . . . Searches Triggered . | . . . Construction Impeded . | . . . Haulers Reinforced . | . . . Active Scanning Responses . | . . . Cargo Convoy Interrupts . | . . . Stealth | -11 -10 -9 --------- Run | Yrd Mat Mat Distress Signals 6 | . 2 4 Communications Jammed . | . . . Distress Signals . | . . . Times Spotted 59 | . 25 34 Peak Tracking Total 5 | . 4 5 Tactical Retreats . | . . . Traps | -11 -10 -9 ------- Run | Yrd Mat Mat Traps Triggered 3 | . 3 . Indirectly . | . . . Trap Hack Attempts . | . . . Triggered . | . . . Disarmed . | . . . Reprogrammed . | . . . Reused . | . . . Traps Extracted . | . . . Installed . | . . . Triggered . | . . . Machines | -11 -10 -9 ---------- Run | Yrd Mat Mat Machines Disabled . | . . . Max in Single Turn . | . . . Machines Repaired . | . . . Machines Dismantled . | . . . Machines Sabotaged . | . . . Overloaded Fab Kills . | . . . Hacking | -11 -10 -9 --------- Run | Yrd Mat Mat Machines Accessed 8 | . 5 3 Terminals 6 | . 5 1 Fabricators . | . . . Repair Stations 1 | . . 1 Recycling Units . | . . . Scanalyzers 1 | . . 1 Garrison Access . | . . . Total Hacks 15 | . 9 6 Successful 11 | . 6 5 Failed 4 | . 3 1 Catastrophic 1 | . 1 . Database Lockouts . | . . . Manual 11 | . 10 1 Terminals 11 | . 9 2 Fabricators . | . . . Repair Stations 2 | . . 2 Recycling Units . | . . . Scanalyzers 2 | . . 2 Garrison Access . | . . . Terminal Hacks 2 | . 1 1 Robot Schematic 1 | . 1 . Alert Level 1 | . . 1 Fabricator Hacks . | . . . Repair Station Hacks 1 | . . 1 Scan Component 1 | . . 1 Recycling Unit Hacks . | . . . Scanalyzer 2 | . . 2 Insert Component 1 | . . 1 Analyze 1 | . . 1 Garrison Access Hacks . | . . . Unauthorized Hacks 6 | . 5 1 Terminals 6 | . 5 1 Botnet 5 | . 4 1 Operators 1 | . 1 . Fabricators . | . . . Repair Stations . | . . . Recycling Units . | . . . Scanalyzers . | . . . Garrison Access . | . . . Data Cores Recovered . | . . . Used . | . . . Hacking Detections 4 | . 2 2 Full Trace Events . | . . . Feedback Events . | . . . Feedback Blocked . | . . . Robot Schematics Acquired 1 | . 1 . Robots Built . | . . . Authchips . | . . . Time . | . . . Total Robot Build Rating . | . . . Part Schematics Acquired 1 | . . 1 Parts Built . | . . . Authchips . | . . . Time . | . . . Total Part Build Rating . | . . . Part Studies Acquired . | . . . Parts Repaired . | . . . Time . | . . . Parts Recycled . | . . . Recycled Matter . | . . . Retrieved Matter . | . . . Retrieved Components . | . . . Parts Scanalyzed 1 | . . 1 Part Schematics Acquired 1 | . . 1 Parts Damaged . | . . . Bothacking | -11 -10 -9 ------------ Run | Yrd Mat Mat Used RIF Installer . | . . . Robots Hacked . | . . . Non-combat . | . . . Combat . | . . . Robot Hacks Applied . | . . . Relay Couplers Released . | . . . Fabnet Peak Effective % . | . . . Robots Rewired . | . . . Allies Hacked . | . . . Hacks Repelled . | . . . Allies | -11 -10 -9 -------- Run | Yrd Mat Mat Total Allies . | . . . Largest Group . | . . . Highest-Rated Group . | . . . Highest-Rated Ally . | . . . Total Orders . | . . . Ally Attacks . | . . . Total Damage . | . . . Kills . | . . . Allies Corrupted . | . . . Allies Melted . | . . . Intel | -11 -10 -9 ------- Run | Yrd Mat Mat Active Infowar (turns) . | . . . Robot Analysis Total . | . . . Derelict Logs Recovered . | . . . Drone Launches . | . . . Drone Recoveries . | . . . Exploration | -11 -10 -9 ------------- Run | Yrd Mat Mat Turns Passed 2641 | 103 1280 1258 Spaces Moved 958 | 56 538 364 Core 19 | 6 . 13 Treads 768 | 50 538 180 Legs 93 | . . 93 Wheels 78 | . . 78 Hover . | . . . Flight . | . . . Fastest Speed 50 | 50 160 110 Average Speed 219 | 148 191 271 Slowest Speed 750 | 160 240 750 Overloaded Moves . | . . . Propulsion Burnouts . | . . . Robots Hopped . | . . . Potential Cave-ins . | . . . Cave-ins Triggered . | . . . Exploration Rate (%) 34 | 4 64 36 Regions Visited 2 Branch Regions . Pre-discovered Areas . | . . . Known Exits Taken . | . . . Unknown Exits Taken 2 | 1 1 . Scrap Searched . | . . . Spaces Dug . | . . . Terrain Destroyed 88 | . . 88 Melee . | . . . Projectile . | . . . AOE 88 | . . 88 Terrain Rammed . | . . . Walls Destroyed . | . . . Machines Disabled . | . . . Actions | -11 -10 -9 --------- Run | Yrd Mat Mat Total 1270 | 74 654 542 Wait 94 | . 23 71 Move 957 | 56 537 364 Hop . | . . . Pick Up 36 | 10 9 17 Fast Attach 11 | . 7 4 Attach 22 | 6 4 12 Detach 4 | . . 4 Swap 4 | 1 2 1 Drop 11 | . 2 9 Fire 88 | . 61 27 Melee 33 | . . 33 Ram . | . . . Kick . | . . . Crush 10 | 1 9 . Escape Stasis . | . . . Rewire . | . . . Trap . | . . . Miscellaneous . | . . . Route ------- -11/Scrapyard -10/Materials (discovered 3 exits: *Mat x2 / [*Sub]) -9/Materials (discovered 3 exits: [*Mat x2] / [*Min]) History --------- Turn | Location | Event 2 | -11/Scrapyard | Met Revision 17 8 | -11/Scrapyard | Discovered new exit (range 15) 104 | -11/Scrapyard | Entered Materials 314 | -10/Materials | Build established: Mutant 438 | -10/Materials | Discovered new exit (range 14) 558 | -10/Materials | Discovered new exit (range 6) 985 | -10/Materials | Discovered new exit (range 3) 1384 | -10/Materials | Entered another Materials area 1384 | -9/Materials | Evolved 2 slots: Utility x1, Weapon x1 1650 | -9/Materials | Discovered new exit (range 8) 1817 | -9/Materials | Discovered new exit (range 11) 1918 | -9/Materials | Lost 5 parts (2u3w) 2047 | -9/Materials | Core integrity fell below 50% 2127 | -9/Materials | Lost 3 parts (1p2n) 2200 | -9/Materials | Core integrity fell below 20% 2448 | -9/Materials | Discovered new exit (range 11) 2642 | -9/Materials | Destroyed by G-34 Mercenary with Small Laser Last Messages --------------- Time: 26 02422_ System corrupted: Matter fused (-10). 02448_ EXIT=FOUND 02497_ O-16 Technician: "IFF HANDSHAKE FAILED. SECURING TERMINAL." 02503_ ALERT: Hostiles spotted, dispatching reinforcements to Terminal M004. 02505_ System corrupted: Matter fused (-7). 02524_ Sneak attack on O-16 Technician. 02524_ Destroyed Datajack. 02524_ Destroyed Hover Unit. 02524_ O-16 Technician system corrupted by crushing effect. 02525_ O-16 Technician system terminally corrupted. 02527_ Acquired 14 matter. 02538_ NY>U6SZZRERFBS6HP6K LCBC1CEARBINQ% 02602_ W-16 Scout sends out distress signal. 02624_ System corrupted: Matter fused (-7). Map ----- +----------------------------------------------------+ | ??????????????????????????????????# #########+#### | | ??????????????????????????????????# !%| | | ?????????????????? ?????????""" + !*= | | ????????????????? ????????????# | | ????????????????? ????????????######## ##### | | ?????????????????# #?????????????# # #???? | | ?????????????????# #?????????????# # #???? | | ?????????????????+ #?????????????# + #???? | | ?????????????????# ############### # #???? | | ?????????????????# # # """ # #???? | | ?????????????????# # ??# """?# #???? | | ?????????????????# # ????# """?# #???? | | ?????????????????# + ??????# ""??# #???? | | ?????????????????# # ?????????? ??# #???? | | ??????????######## # ???????????? ???# #???? | | ??????????# # #+###???????????????# #???? | | ??????????# ] # #?###########???# #???? | | ??????????# " + # ????#% #???? | | ??????????# T # # """"??????# #???? | | ??????????# " # + """"??????# #???? | | ??????????# #####k # """"??????# #???? | | ??????????########???# # ????# #???? | | ?????????????????????# ################# ##### | | ?????????????????????# =%[ %[% # | | ?????????????????????# a % # | | ?????????????????????# g @ % o %! !% # | | ?????????????????????# g ##########+########+###+# | | ?????????????????????# #?????#[ # %%![ # | | ?????????????????????# #?????# """ # = # | | ?????????????????????# #?????# """ # # | | ?????????????????????# #?????# """ # # | | ?????????????????????# #?????# # # | | ?????????????????????# #?????# " " # # | | ?????????????????????# #?????# "R" # """ # | | ????????????????????? #?????# """ # S" # | | ?????????????????????# < #?????# # # | | ?????????????????????# #?????############### ### | | ?????????????????????#####???????????????????###?? | | ?????????????????????????????????????????????????? | | ?????????????????????????????????????????????????? | | ?????????????????????????????????????????????????? | | ?????????????????????????????????????????????????? | | ?????????????????????????????????????????????????? | | ?????????????????????????????????????????????????? | | ?????????????????????????????????????????????????? | | ?????????????????????????????????????????????????? | | ?????????????????????????????????????????????????? | | ?????????????????????????????????????????????????? | | ?????????????????????????????????????????????????? | | ?????????????????????????????????????????????????? | +----------------------------------------------------+ Best States ------------- Heat Dissipation 38 Energy Generation 14 Energy Capacity 280 Matter Stores 300 Matter Capacity 300 Sight Range 16 Terrain Scan Density 10 Armor Coverage 150 Evasion (%) 40 Recoil Reduction 2 Item Schematics ----------------- Hacking Suite | -9/Materials | Scanalyzed Robot Schematics ------------------ G-34 Mercenary | -10/Materials | Hacked Fabricated ------------ Nothing Repaired ---------- Nothing Studied --------- None Alien Tech Used ----------------- None Achievements -------------- None Challenges ------------ None Game ------ Seed PlasmaPietyCrosscalibrator Manual? 0 Play Time 00:16:26 Cumulative 299.3 hours Start 2026.09.20 @ 15:56:36 End 2026.09.20 @ 16:10:32 Sessions 1 Manual Loads 0 Difficulty Rogue Special Mode None Game No. 319 Rogue 319 Adventurer 0 Explorer 0 Win Type - Total 3 Types 3/0/0/0/0/0/0/0/0/0 Lore% 33 Gallery% 58 Achievement% 42 Wizard Run 0 Options --------- Layout 1 ASCII 0 Keyboard 0 Movement Numpad Keybinds 0 Fullscreen 2 Font 24/Smallcaps Map View 50x35 Zoom Use 0% Tactical HUD 1 Map Filters NONE Filters NONE Steam 1 RUN: a95f194a-4878-4f4e-bc98-59746902132e